Workbook

Sheet Informe de compatibilidad

Sheet Bienes Muebles - Municipio
A8: CUENTA | B8: FECHA DE ADQUISICION | C8: No. CHEQUE | D8: BIEN ADQUIRIDO | E8: No. DE FACTURA | F8: PROVEEDOR | G8: MARCA | H8: MODELO | I8: No. DE SERIE | J8: UNIDAD ADMINISTRATIVA | K8: IMPORTE | P8: OBSERVACIONES
K9: RECURSO CON QUE FUE ADQUIRIDO
K10: GASTO CORRIENTE | L10: FONDO III | M10: FONDO IV | N10: OTROS | O10: TOTAL
A11: 1241-1-5111 | B11: MOBILIARIO
A12: 1241-1-5111 | B12: 2020-01-15 | C12: TRANSF. | D12: 10 SILLAS EJECUTIVAS | E12: 435 | F12: ELIZABETH ROMERO GUEVARA | G12: - | H12: - | I12: - | J12: PRESIDENTE, TESORERIA, OBRA P. ADMINISTRATIVA, DIF MPAL. | M12: 34800 | O12: =SUM(K12:N12) -> 34800
A13: 1241-1-5111 | B13: 2020-08-26 | C13: TRANSF. | D13: 1 PODIUM | E13: AB 2275 | F13: ALUMINIO Y ACRILICOS DEL CENTRO, S.A. DE C.V. | G13: - | H13: - | I13: - | J13: TESORERIA | K13: 4060 | O13: =SUM(K13:N13) -> 4060
A14: 1241-1-5111 | B14: 2020-09-09 | C14: TRANSF. | D14: 1 SILLA SECRETARIAL | E14: A 29 | F14: MA. HORTENCIA DE LIRA RAMIREZ | G14: - | H14: - | I14: - | J14: SECRETARIA | K14: 1972 | O14: =SUM(K14:N14) -> 1972 | P14: PASIVO PAGADO EL DIA 14/OCTUBRE/2020
A15: 1241-1-5111 | B15: 2020-09-09 | C15: TRANSF. | D15: 1 SILLA SECRETARIAL | E15: A 29 | F15: MA. HORTENCIA DE LIRA RAMIREZ | G15: - | H15: - | I15: - | J15: SECRETARIA | K15: 1972 | O15: =SUM(K15:N15) -> 1972 | P15: PASIVO PAGADO EL DIA 14/OCTUBRE/2021
A16: 1241-1-5111 | B16: 2020-09-09 | C16: TRANSF. | D16: 1 SILLA SECRETARIAL | E16: A 29 | F16: MA. HORTENCIA DE LIRA RAMIREZ | G16: - | H16: - | I16: - | J16: TESORERIA | K16: 2285.2 | O16: =SUM(K16:N16) -> 2285.2 | P16: PASIVO PAGADO EL DIA 14/OCTUBRE/2022
A17: 1241-1-5111 | B17: 2020-11-05 | C17: CH/8033 | D17: 1 LIBRERO | E17: B 05 | F17: ELEAZAR JUAREZ RINCON | G17: - | H17: - | I17: - | J17: TESORERIA: CATASTRO | K17: 5220 | O17: =SUM(K17:N17) -> 5220
A18: 1241-1-5112 | B18: EQUIPO DE ADMINISTRACIÓN
A21: 1241-2-5121 | B21: MUEBLES, EXCEPTO DE OFICINA Y ESTANTERÍA
A24: 1241-3-5151 | B24: BIENES INFORMÁTICOS
A25: 1241-3-5151 | B25: 2020-01-28 | C25: TRANSF. | D25: 1 MULTIFUNCIONAL | E25: 4F24 | F25: ALEJANDRO CASTILLO LUEVANO | G25: EPSON | H25: I3100 | I25: - | J25: SECRETARIA | K25: 3683 | O25: =SUM(K25:N25) -> 3683
A26: 1241-3-5151 | B26: 2020-03-13 | C26: TRANSF. | D26: 1 COMPUTADORA | E26: 825E | F26: ALEJANDRO CASTILLO LUEVANO | G26: WIN | H26: 8 | I26: - | J26: CONTRALORIA | K26: 8120 | O26: =SUM(K26:N26) -> 8120
A27: 1241-3-5151 | B27: 2020-05-01 | C27: TRANSF. | D27: 1 TABLET | E27: A-564 | F27: ELIZABETH ROMERO GUEVARA | G27: STYLOS | H27: - | I27: - | J27: TESORERIA: TRANSPARENCIA | K27: 1274.84 | O27: =SUM(K27:N27) -> 1274.84
A28: 1241-3-5151 | B28: 2020-05-01 | C28: TRANSF. | D28: 1 TABLET | E28: A-564 | F28: ELIZABETH ROMERO GUEVARA | G28: LENOVO | H28: - | I28: - | J28: TESORERIA: TRANSPARENCIA | K28: 2270.12 | O28: =SUM(K28:N28) -> 2270.12
A29: 1241-3-5151 | B29: 2020-05-06 | C29: TRANSF. | D29: 1 COMPUTADORA, 1 ADAPTADOR USB | E29: 1576 | F29: ALEJANDRO CASTILLO LUEVANO | G29: WIN | H29: - | I29: - | J29: SEGURIDAD PUBLICA | M29: 6206 | O29: =SUM(K29:N29) -> 6206
A30: 1241-3-5151 | B30: 2020-05-13 | C30: TRANSF. | D30: 1 IMPRESORA | E30: 537 | F30: MARTHA CECILIA CANDELAS VALADEZ | G30: EPSON | H30: L3110 | I30: - | J30: TESORERIA: SINDICATURA | K30: 3712 | O30: =SUM(K30:N30) -> 3712
A31: 1241-3-5151 | B31: 2020-07-17 | C31: TRANSF. | D31: 1 LAPTOP | E31: A-631 | F31: ELIZABETH ROMERO GUEVARA | G31: HP-CELERON | H31: - | I31: - | J31: TESORERIA: TRANSPARENCIA | K31: 8642 | O31: =SUM(K31:N31) -> 8642
A32: 1241-3-5151 | B32: 2020-07-25 | C32: TRANSF. | D32: 1 LAPTOP | E32: A-636 | F32: ELIZABETH ROMERO GUEVARA | G32: - | H32: - | I32: - | J32: INMUVI | K32: 11000 | O32: =SUM(K32:N32) -> 11000
A33: 1241-3-5151 | B33: 2020-12-28 | C33: TRANSF. | D33: 1 COMPUTADORA DE ESCRITORIO | E33: FF1F | F33: ALEJANDRO CASTILLO LUEVANO | G33: HACER TRUEBASIX | H33: - | I33: - | J33: SECRETARIA | M33: 7540 | O33: =SUM(K33:N33) -> 7540
A35: 1241-4-5191 | B35: OTROS MOBILIARIOS Y EQUIPOS DE ADMINISTRACIÓN
A36: 1241-4-5191 | B36: 2020-11-20 | C36: TRANSF. | D36: 1 LICUADORA | E36: A 462 | F36: J. JESUS GUERRERO ORTIZ | G36: - | H36: - | I36: - | J36: DIF MPAL. | K36: 690 | O36: =SUM(K36:N36) -> 690
A37: 1241-4-5191 | B37: 2020-12-03 | C37: TRANSF. | D37: 1 CAFETERA | E37: A 1404 | F37: JONATHAN ENRIQUE SANABRIA BECERRIL | G37: - | H37: - | I37: - | J37: TESORERIA: DESARROLLO SOCIAL | K37: 2030 | O37: =SUM(K37:N37) -> 2030
A39: 1242-1-5211 | B39: OTROS MOBILIARIOS Y EQUIPOS DE ADMINISTRACION
A40: 1242-1-5211 | B40: 2020-09-24 | C40: CH/7986 | D40: 1 PEDESTAL MICROFONO | E40: 11612 | F40: CASA DE MUSICA SANTA CECILIA S.A. DE C.V. | G40: HERCULES | H40: - | I40: - | J40: TESORERIA | K40: 1523 | O40: =SUM(K40:N40) -> 1523
A44: 1242-3-5231 | B44: CÁMARAS FOTOGRÁFICAS Y DE VIDEO
A47: 1242-9-5291 | B47: OTRO MOBILIARIO Y EQUIPO EDUCACIONAL Y RECREATIVO
A50: 1243-1-5311 | B50: EQUIPO MÉDICO Y DE LABORATORIO
A54: 1243-2-5321 | B54: INSTRUMENTAL MÉDICO Y DE LABORATORIO
A57: 1244-1-5411 | B57: AUTOMÓVILES Y EQUIPO TERRESTRE
A58: 1244-1-5411 | B58: 2020-02-10 | C58: CH/7758 | D58: 1 CAMIONETA | E58: - | F58: J. GUADALUPE ESQUIVEL GUEVARA | G58: FORD F-150 | H58: 2001 | I58: - | J58: TESORERIA: OFICIALIA MAYOR | K58: 30000 | O58: =SUM(K58:N58) -> 30000
A59: 1244-1-5411 | B59: 2020-02-28 | C59: TRANSF. | D59: 1 CARRO | E59: - | F59: SERVICIO DE ADMINISTRACION Y ENAJENACION DE BIENES | G59: FORD FUSHION | H59: 2008 | I59: 3FAHP08108R189214 | J59: AYUNTAMIENTO | K59: 17635.66 | O59: =SUM(K59:N59) -> 17635.66
A60: 1244-1-5411 | B60: 2020-02-28 | C60: TRANSF. | D60: 1 CARRO | E60: - | F60: SERVICIO DE ADMINISTRACION Y ENAJENACION DE BIENES | G60: FORD FOCUS | H60: 2009 | I60: 1FAHP35N59W122440 | J60: AYUNTAMIENTO | K60: 17127.31 | O60: =SUM(K60:N60) -> 17127.31
A61: 1244-1-5411 | B61: 2020-02-28 | C61: TRANSF. | D61: 1 CAMIONETA | E61: - | F61: SERVICIO DE ADMINISTRACION Y ENAJENACION DE BIENES | G61: NISSAN FRONTIER | H61: 2006 | I61: 1N6AD07U86C444376 | J61: AYUNTAMIENTO | K61: 18736.14 | O61: =SUM(K61:N61) -> 18736.14
A62: 1244-1-5411 | B62: 2020-12-03 | C62: TRANSF. | D62: 1 CAMIONETA | E62: - | F62: NORA CRUZ DIAZ DE LEON | G62: FORD ESCAPE | H62: 2006 | I62: - | J62: DIF MPAL. | M62: 65000 | O62: =SUM(K62:N62) -> 65000
A63: 1244-2-5421 | B63: CARROCERÍAS Y REMOLQUES
A66: 1244-9-5491 | B66: OTROS EQUIPOS DE TRANSPORTE
A69: 1244-5-5451 | B69: EMBARCACIONES
A72: 1245-0-5511 | B72: EQUIPO DE SEGURIDAD PÚBLICA
A75: 1246-1-5611 | B75: MAQUINARIA Y EQUIPO AGROPECUARIO
A78: 1246-2-5621 | B78: MAQUINARIA Y EQUIPO INDUSTRIAL
A79: 1246-2-5621 | B79: 2020-12-02 | C79: CH/8066 | D79: 1 BOMBA SUMERGIBLE | E79: DA8B | F79: HOME DEPOT MEXICO S. DE R.L. DE C.V. | G79: - | H79: TIPO BALA 1.5hp | I79: - | J79: OBRA P.: ESPACIO DEPORTIVO (EMPASTADO) | K79: 4149 | O79: =SUM(K79:N79) -> 4149
A81: 1246-3-5631 | B81: MAQUINARIA Y EQUIPO DE CONSTRUCCIÓN
A84: 1246-4-5641 | B84: SISTEMAS DE AIRE ACONDICIONADO, CALEFACCIÓN Y DE REFRIGERACIÓN INDUSTRIAL Y COMERCIAL
A87: 1246-5-5651 | B87: EQUIPOS Y APARATOS DE COMUNICACIÓN Y TELECOMUNICACIÓN
A93: 1246-6-5661 | B93: MAQUINARIA Y EQUIPO ELECTRICO Y ELECTRONICO
A98: 1246-7-5672 | B98: RERACCIONES
A101: 1246-9-5691 | B101: OTROS EQUIPOS
A104: 1247-1-5131 | B104: BIENES ARTÍSTICOS Y CULTURALES
A108: 1247-2-5141 | B108: OBJETOS DE VALOR
A111: 1251-0-5911 | B111: SOFTWARE
A120: TOTAL | K120: =SUM(K12:K119) -> 146102.27 | L120: =SUM(L12:L119) -> 0 | M120: =SUM(M12:M119) -> 113546 | N120: =SUM(N12:N119) -> 0 | O120: =SUM(O12:O119) -> 259648.27
A132: NOTA.-EN RELACIÓN CON LO REGISTRADO EN EL S.A.C.G. EN BIENES MUEBLES POR UN MONTO DE $682,039.95 EXISTE UNA DIFERENCIA EN ESTE REPORTE POR LA CANTIDAD DE $64,233.28.00, DEBIDO A QUE ESTE IMPORTE CORRESPONDE A APOYOS A LAS DELEGACIONES
A133: DE HORCONES Y MONTESA DE ESTE MUNICIPIO, REGISTRADOS EN CTA.-8270-561-206001-310-5621-2, SEGÚN PÓLIZAS, SEGÚN PÓLIZAS C01680 Y C01699.

Sheet Bienes Inmuebles - Municipio
B7: CUENTA | C7: FECHA DE ADQUISICION | D7: No. CHEQUE | E7: DESCRIPCION DEL BIEN | F7: UBICACIÓN | G7: No. Y FECHA DE ESCRITURA PÚBLICA | H7: IMPORTE | M7: OBSERVACIONES
H8: RECURSO CON QUE FUE ADQUIRIDO
H9: GASTO CORRIENTE | I9: FONDO III | J9: FONDO IV | K9: OTROS | L9: TOTAL
B10: 1231-0-5811 | C10: TERRENOS
H11: $ | I11: $ | J11: $ | K11: $ | L11: =SUM(H11:J11) -> 0
L13: =SUM(H13:J13) -> 0
B14: 1232-0-5821 | C14: VIVIENDAS
H15: $ | I15: $ | J15: $ | K15: $ | L15: =SUM(H15:J15) -> 0
F17: "NO HUBO MOVIMIENTO" | L17: =SUM(H17:J17) -> 0
B18: 1233-0-5831 | C18: EDIFICIOS NO RESIDENCIALES
H19: $ | I19: $ | J19: $ | K19: $ | L19: =SUM(H19:J19) -> 0
L21: =SUM(H21:J21) -> 0
B22: 1239-0-5891 | C22: OTROS BIENES INMUEBLES
B23: 1239-0-5891 | C23: 2020-01-07 | D23: TRANSF | E23: TERRENO | F23: EJIDO AGUAGORDITA, VILLA GARCIA | G23: - | H23: 300000 | I23: $ | J23: $ | K23: $ | L23: =SUM(H23:J23) -> 300000
L26: =SUM(H26:J26) -> 0
H28: $ | I28: $ | J28: $ | K28: $ | L28: =SUM(H28:J28) -> 0
L29: =SUM(H29:J29) -> 0
H31: $ | I31: $ | J31: $ | K31: $ | L31: =SUM(H31:J31) -> 0
L32: =SUM(H32:J32) -> 0
B33: TOTAL | H33: =SUM(H10:H32) -> 300000 | I33: =SUM(I10:I32) -> 0 | J33: =SUM(J10:J32) -> 0 | K33: =SUM(K10:K32) -> 0 | L33: =SUM(L10:L32) -> 300000

Sheet Hoja1
